Cogmind - Beta 16 @@@ ROGUE MODE // 2026.02.09 @ 18:41:41 Player: Fun Result: Destroyed by G-47 Trooper with Particle Gun Performance ------------- Evolutions (2) 1000 Regions Visited (3) 600 Robots Destroyed (33) 165 Value Destroyed (1127) 1127 Prototype IDs (0) 0 Alien Tech Used (0) 0 Bonus (0) 0 TOTAL SCORE: 2892 Bonus ------- None Cogmind --------- Core Integrity 0/550 Matter 74/300 Energy 90/100 System Corruption 1% Temperature Cool (9) Movement Core (50) Location -8/Materials Parts ------- > --- POWER (1) -------- (None) > --- PROPULSION (4) --- (None) > --- UTILITY (3) ------ (None) > --- WEAPON (3) ------- Datajack > --- INVENTORY (5) ---- (None) Peak State ------------ > --- POWER ------------ (None) > --- PROPULSION ------- Flight Unit VTOL Module VTOL Module > --- UTILITY ---------- Small Battery Core Shielding > --- WEAPON ----------- Shotgun Shotgun Shotgun > --- INVENTORY -------- Small Laser Light Cannon Grenade Launcher Grenade Launcher Datajack [Rating: 13] Favorites ----------- Power Light Ion Engine Engine Light Ion Engine Propulsion Compact Wheel Wheel Compact Wheel Flight Unit VTOL Module Utility Small Storage Unit Device Heat Sink Storage Small Storage Unit Protection Core Shielding Weapon EM Pulse Gun Energy Gun EM Pulse Gun Ballistic Gun Shotgun Ballistic Cannon Light Cannon Launcher Grenade Launcher Special Melee Weapon Datajack Build | -11 -10 -9 -8 ------- Run | Yrd Mat Mat Mat Slots Evolved 4 | . . 2 2 Power . | . . . . Propulsion 2 | . . . 2 Utility 1 | . . 1 . Weapon 1 | . . 1 . Parts Attached 29 | 7 3 12 7 Power 3 | 1 1 1 . Engine 3 | 1 1 1 . Core . | . . . . Reactor . | . . . . Propulsion 5 | 2 . 2 1 Treads . | . . . . Leg . | . . . . Wheel 2 | 2 . . . Hover . | . . . . Flight 3 | . . 2 1 Utility 5 | 1 1 3 . Device 2 | . 1 1 . Storage 2 | 1 . 1 . Processor . | . . . . Hackware . | . . . . Protection 1 | . . 1 . Artifact . | . . . . Weapon 16 | 3 1 6 6 Energy Gun 5 | 2 1 2 . Energy Cannon . | . . . . Ballistic Gun 6 | 1 . 1 4 Ballistic Cannon 2 | . . 2 . Launcher 2 | . . 1 1 Special Weapon . | . . . . Impact Weapon . | . . . . Slashing Weapon . | . . . . Piercing Weapon . | . . . . Special Melee Weapon 1 | . . . 1 Unidentified Prototypes . | . . . . Corrupted Parts 1 | . . 1 . System Corruption 2 | . . 2 . Parts Lost 19 | . 1 6 12 Power 1 | . . 1 . Propulsion 5 | . . 2 3 Utility 2 | . . . 2 Weapon 11 | . 1 3 7 Highest Loss Streak 10 | . 1 4 10 To Critical Strikes . | . . . . Average Backups 6 | 2 7 6 3 Power . | . 1 . . Propulsion 2 | 1 2 3 . Utility . | . . . . Weapon 1 | . 2 1 2 Tool/Special . | . . . . Unused Backups 8 | . 5 3 . Power . | . . . . Propulsion 7 | . 4 3 . Utility . | . . . . Weapon 1 | . 1 . . Tool/Special . | . . . . Average Slot Usage (%) 77 | . 97 76 32 Engine 9 | . 14 10 . Wheel 14 | . 28 7 . Flight 5 | . . 8 8 Device 7 | . 12 6 . Storage 10 | . 14 10 4 Protection 5 | . . 11 3 Energy Gun 16 | . 27 10 3 Ballistic Gun 2 | . . 2 9 Ballistic Cannon 3 | . . 8 2 Peak Build Rating 13 | 6 7 10 13 Average Rating 7 | 4 6 8 5 On Entrance 5 | . 6 7 8 Avg Prop Armor Cover (%) . | . . . . Naked Turns 3 | . . . 3 Heaviest Build 18 | 12 13 18 11 Greatest Support 26 | 26 26 26 12 Greatest Overweight (x) 5 | . . 5 1 Average Overweight (x) . | . . . . Largest Inventory Capacity 8 | 8 8 8 5 Average Capacity 6 | 7 8 6 5 Most Carried 8 | 6 8 8 5 Average Carried 6 | 2 7 6 3 Final Capacity 8 | 8 8 5 5 Final Carried 8 | 6 8 4 . Class Distribution -------------------- 83% | Mutant 11% | Tank 5% | Sprinter Dominant Class ---------------- Mutant | -10/Materials Mutant | -9/Materials Mutant | -8/Materials Resources | -11 -10 -9 -8 ----------- Run | Yrd Mat Mat Mat Matter Collected 671 | 268 24 142 237 Remotely . | . . . . Salvage Created 1026 | . 323 467 236 Parts 52 | . 18 27 7 Haulers Intercepted . | . . . . Recyclers Shooed 1 | . . . 1 Parts Field Recycled . | . . . . Retrieved Matter . | . . . . Parts Self-Destructed . | . . . . Prevented . | . . . . Parts Restored . | . . . . Kills | -11 -10 -9 -8 ------- Run | Yrd Mat Mat Mat Combat Hostiles Destroyed 28 | . 8 13 7 Guns 14 | . 5 5 4 Cannons 4 | . . 3 1 AOE 8 | . 2 5 1 Classes Destroyed 4 | . 3 1 . Worker 1 | . . 1 . Watcher 4 | . 2 2 . Swarmer 3 | . 3 . . Grunt 25 | . 5 13 7 Best Kill Streak 7 | . 4 6 7 Combat Bots Only 7 | . 3 5 7 Max Kills in Single Turn 3 | . 3 2 1 Gunslinging 1 | . 1 . . Exploded 2 | . 2 2 1 Melee . | . . . . Uniques/NPCs Destroyed . | . . . . Combat | -11 -10 -9 -8 -------- Run | Yrd Mat Mat Mat Hostile Shots Fired 205 | . 39 46 120 Missed 49 | . 11 7 31 Hits 156 | . 28 39 89 Projectile 156 | . 28 39 89 Critical Strikes 7 | . . 1 6 Actively Blocked 1 | . . 1 . Damage Taken 2209 | . 243 508 1458 Core 695 | . 44 99 552 Absorbed by Shields . | . . . . Redirected to Shielding 50 | . . 21 29 Regen/Repaired (Parts) 3 | . . 3 . Core Remaining (%) 85 | 100 82 75 . Volleys Fired 105 | . 21 38 46 Largest 3 | . 2 3 3 Hottest 110 | . 80 110 70 Shots Fired 176 | . 40 73 63 Gun 126 | . 40 36 50 Cannon 45 | . . 33 12 Launcher 5 | . . 4 1 Special . | . . . . Kinetic 95 | . . 50 45 Thermal 24 | . . 7 17 Explosive 5 | . . 4 1 Electromagnetic 52 | . 40 12 . Robot Hit Streak 13 | . 9 9 13 Robot Miss Streak 5 | . 4 5 5 Penetration Max . | . . . . Secondary Targets 3 | . 3 . . Max Gunslinging Chain 1 | . 1 . . Shots Hit Robots 116 | . 25 45 46 Core Hits 63 | . 10 28 25 Critical Kills . | . . . . Critical Parts Destroyed . | . . . . Critical Strikes 1 | . . . 1 Blast 1 | . . . 1 Melee Attacks 2 | . . . 2 Impact . | . . . . Slashing . | . . . . Piercing . | . . . . Sneak Attacks . | . . . . Combat Hostiles . | . . . . Follow-up Attacks . | . . . . Damage Inflicted 2134 | . 480 977 677 Guns 1146 | . 391 295 460 Cannons 558 | . . 385 173 Explosions 420 | . 83 297 40 Melee . | . . . . Ramming 10 | . 6 . 4 Kinetic 1042 | . . 556 486 Thermal 275 | . 83 45 147 Explosive 337 | . . 297 40 Electromagnetic 470 | . 391 79 . Impact . | . . . . Slashing . | . . . . Piercing . | . . . . Highest Corruption 2 | . 1 2 1 Average Corruption 1 | . 1 2 1 Corruption Purged . | . . . . Corruption Blocked . | . . . . Effects 2 | . 1 1 . Message Errors 1 | . 1 . . Matter Fused 1 | . . 1 . Overload Shots . | . . . . Overflow Damage 1 | . . 1 . Projectiles 1 | . . 1 . Explosions . | . . . . Melee . | . . . . Knockbacks 5 | . . 5 . Impact . | . . . . Kinetic 5 | . . 5 . Secondary . | . . . . Self-Inflicted Damage 29 | . 3 . 26 Shots 1 | . . . 1 Rammed 4 | . 3 . 1 Targets Rammed 4 | . 3 . 1 Kicked . | . . . . Crushed . | . . . . Highest Temperature 132 | . 2 132 28 Average Temperature 26 | . 2 45 10 Received Heat Transfer 1221 | . 30 282 909 Siege Activations . | . . . . Martial Activations . | . . . . Shielding Activations . | . . . . Robots Disrupted . | . . . . Combat Hostiles . | . . . . Robots Corrupted 1 | . 1 . . Combat Hostiles 1 | . 1 . . Parts Fried 2 | . 2 . . Impact Corruptions . | . . . . Robots Melted 1 | . . . 1 Combat Hostiles 1 | . . . 1 Parts Melted 1 | . . . 1 Heat Transferred 536 | . 100 111 325 Parts Sabotaged . | . . . . Parts Stolen . | . . . . Parts Stripped . | . . . . Power Chain Reactions 1 | . 1 . . Alert | -11 -10 -9 -8 ------- Run | Yrd Mat Mat Mat Maximum Alert Level 1 | . . 1 . Low Security (%) 98 | 100 100 95 100 Level 1 1 | . . 4 . Level 2 . | . . . . Level 3 . | . . . . Level 4 . | . . . . Level 5 . | . . . . High Security . | . . . . Max Security . | . . . . Peak Influence 235 | . 151 235 109 Initial 98 | . . . 98 Average 51 | . 32 68 74 Influence Increases 849 | . 221 437 191 Destroy 0b10 Robot/C 560 | . 160 260 140 Destroy 0b10 Robot/NC 25 | . 10 15 . Destroy Leader 128 | . 44 54 30 Disable Machine 15 | . . 15 . Destroy Structure 31 | . 7 18 6 Lose Combat Pursuer 90 | . . 75 15 Influence Decreases 760 | . 221 202 337 Entered New Map 137 | . . . 137 Time Decay 310 | . 80 150 80 Lost Part 182 | . 10 52 120 Purge Threat 131 | . 131 . . Squads Dispatched 4 | . 2 . 2 Investigation 1 | . . . 1 Extermination . | . . . . Reinforcement 3 | . 2 . 1 Assault . | . . . . Garrison . | . . . . Intercept . | . . . . Searches Triggered . | . . . . Construction Impeded . | . . . . Haulers Reinforced . | . . . . Active Scanning Responses . | . . . . Cargo Convoy Interrupts . | . . . . Stealth | -11 -10 -9 -8 --------- Run | Yrd Mat Mat Mat Distress Signals 1 | . . 1 . Communications Jammed . | . . . . Distress Signals . | . . . . Times Spotted 49 | . 15 24 10 Peak Tracking Total 9 | . 4 5 9 Tactical Retreats 4 | . . 3 1 Traps | -11 -10 -9 -8 ------- Run | Yrd Mat Mat Mat Traps Triggered . | . . . . Indirectly . | . . . . Trap Hack Attempts . | . . . . Triggered . | . . . . Disarmed . | . . . . Reprogrammed . | . . . . Reused . | . . . . Traps Extracted . | . . . . Installed . | . . . . Triggered . | . . . . Machines | -11 -10 -9 -8 ---------- Run | Yrd Mat Mat Mat Machines Disabled 1 | . . 1 . Max in Single Turn 1 | . . 1 . Machines Repaired . | . . . . Machines Dismantled . | . . . . Machines Sabotaged . | . . . . Overloaded Fab Kills . | . . . . Hacking | -11 -10 -9 -8 --------- Run | Yrd Mat Mat Mat Machines Accessed 3 | . 1 1 1 Terminals 2 | . 1 . 1 Fabricators . | . . . . Repair Stations 1 | . . 1 . Recycling Units . | . . . . Scanalyzers . | . . . . Garrison Access . | . . . . Total Hacks 10 | . 2 6 2 Successful 5 | . 1 4 . Failed 5 | . 1 2 2 Catastrophic . | . . . . Database Lockouts . | . . . . Manual . | . . . . Terminals 4 | . 2 . 2 Fabricators . | . . . . Repair Stations 6 | . . 6 . Recycling Units . | . . . . Scanalyzers . | . . . . Garrison Access . | . . . . Terminal Hacks 1 | . 1 . . Unreport Threat 1 | . 1 . . Fabricator Hacks . | . . . . Repair Station Hacks 4 | . . 4 . Scan Component 2 | . . 2 . Repair 2 | . . 2 . Recycling Unit Hacks . | . . . . Scanalyzer . | . . . . Garrison Access Hacks . | . . . . Unauthorized Hacks . | . . . . Terminals . | . . . . Fabricators . | . . . . Repair Stations . | . . . . Recycling Units . | . . . . Scanalyzers . | . . . . Garrison Access . | . . . . Data Cores Recovered . | . . . . Used . | . . . . Hacking Detections 2 | . . 1 1 Full Trace Events 1 | . . . 1 Feedback Events . | . . . . Feedback Blocked . | . . . . Robot Schematics Acquired . | . . . . Robots Built . | . . . . Authchips . | . . . . Time . | . . . . Total Robot Build Rating . | . . . . Part Schematics Acquired . | . . . . Parts Built . | . . . . Authchips . | . . . . Time . | . . . . Total Part Build Rating . | . . . . Part Studies Acquired . | . . . . Parts Repaired 2 | . . 2 . Time 52 | . . 52 . Parts Recycled . | . . . . Recycled Matter . | . . . . Retrieved Matter . | . . . . Retrieved Components . | . . . . Parts Scanalyzed . | . . . . Part Schematics Acquired . | . . . . Parts Damaged . | . . . . Bothacking | -11 -10 -9 -8 ------------ Run | Yrd Mat Mat Mat Used RIF Installer . | . . . . Robots Hacked 1 | . . . 1 Non-combat . | . . . . Combat 1 | . . . 1 Robot Hacks Applied 1 | . . . 1 parse_system 1 | . . . 1 Relay Couplers Released . | . . . . Fabnet Peak Effective % . | . . . . Robots Rewired . | . . . . Allies Hacked . | . . . . Hacks Repelled . | . . . . Allies | -11 -10 -9 -8 -------- Run | Yrd Mat Mat Mat Total Allies . | . . . . Largest Group . | . . . . Highest-Rated Group . | . . . . Highest-Rated Ally . | . . . . Total Orders . | . . . . Ally Attacks . | . . . . Total Damage . | . . . . Kills . | . . . . Allies Corrupted . | . . . . Allies Melted . | . . . . Intel | -11 -10 -9 -8 ------- Run | Yrd Mat Mat Mat Active Infowar (turns) . | . . . . Robot Analysis Total . | . . . . Derelict Logs Recovered . | . . . . Drone Launches . | . . . . Drone Recoveries . | . . . . Exploration | -11 -10 -9 -8 ------------- Run | Yrd Mat Mat Mat Turns Passed 955 | 71 359 358 167 Spaces Moved 766 | 63 275 333 95 Core 43 | 12 . 10 21 Treads . | . . . . Legs . | . . . . Wheels 414 | 51 275 88 . Hover . | . . . . Flight 309 | . . 235 74 Fastest Speed 30 | 50 90 32 30 Average Speed 70 | 82 90 62 39 Slowest Speed 300 | 90 90 300 100 Overloaded Moves . | . . . . Propulsion Burnouts . | . . . . Robots Hopped . | . . . . Potential Cave-ins . | . . . . Cave-ins Triggered . | . . . . Exploration Rate (%) 22 | 4 46 29 12 Regions Visited 3 Branch Regions . Pre-discovered Areas . | . . . . Known Exits Taken . | . . . . Unknown Exits Taken 3 | 1 1 1 . Scrap Searched . | . . . . Spaces Dug . | . . . . Terrain Destroyed 31 | . 9 16 6 Melee . | . . . . Projectile . | . . . . AOE 31 | . 9 16 6 Terrain Rammed . | . . . . Walls Destroyed . | . . . . Machines Disabled . | . . . . Actions | -11 -10 -9 -8 --------- Run | Yrd Mat Mat Mat Total 1004 | 81 350 413 160 Wait 48 | . 29 18 1 Move 763 | 62 274 332 95 Hop . | . . . . Pick Up 28 | 12 12 2 2 Fast Attach 10 | . . 6 4 Attach 21 | 6 3 7 5 Detach 4 | . . 4 . Swap 5 | 1 . 2 2 Drop 14 | . 8 4 2 Fire 105 | . 21 38 46 Melee 2 | . . . 2 Ram 4 | . 3 . 1 Kick . | . . . . Crush . | . . . . Escape Stasis . | . . . . Rewire . | . . . . Trap . | . . . . Miscellaneous . | . . . . Route ------- -11/Scrapyard -10/Materials -9/Materials -8/Materials History --------- Turn | Location | Event 3 | -11/Scrapyard | Discovered new exit (range 15) 72 | -11/Scrapyard | Entered Materials 329 | -10/Materials | Build established: Mutant 365 | -10/Materials | Discovered new exit (range 5) 431 | -10/Materials | Entered another Materials area 431 | -9/Materials | Evolved 2 slots: Utility x1, Weapon x1 592 | -9/Materials | Lost 4 parts (2n2w) 755 | -9/Materials | Repaired Flight Unit 781 | -9/Materials | Repaired Flight Unit? 783 | -9/Materials | Discovered new exit (range 12) 789 | -9/Materials | Entered another Materials area 789 | -8/Materials | Evolved 2 slots: Propulsion x2 889 | -8/Materials | Core integrity fell below 50% 919 | -8/Materials | Lost 10 parts (3n2u5w) 931 | -8/Materials | Core integrity fell below 20% 956 | -8/Materials | Destroyed by G-47 Trooper with Particle Gun Last Messages --------------- G-47 Trooper overheating. Acquired 10 matter. Acquired 36 matter. U-05 Engineer lays Concrete. G-47 Trooper heat spikes uncontrollably. G-47 Trooper heat damages Particle Gun. G-47 Trooper heat damages Aluminum Leg. G-47 Trooper overheating. G-47 Trooper destroyed. Slammed into U-05 Engineer. Destabilizing: System corrupted (+1). Acquired 26 matter. Critical hit (Burn: +37). R-06 Scavenger collects Imp. Heat Sink. Shotgun destroyed. Terminal disabled. Jacked G-47 Trooper... >>parse_system Reading system data... Jacked G-47 Trooper... Map ----- +----------------------------------------------------+ | ???????????????????????????????????????????? | | ???????????????????????????????????????????? | | ???????????????????????????????????????????? | | ???????????????????????????????????????????? | | ???????????????????????????????????????????? | | ???????????????????????????????????????????? | | ???????????????????????????????????????????? | | ???????????????????????????????????????????? | | ???????????????????????????????????????????? | | ???????????????????????????????????????????? | | ???????????????????????????????????????????? | | ???????????????????????????????????????????? | | ???????????????????????????????????????????? | | ???????????????????????????????????????????? | | ???????????????????????????????????????????? | | ?????????????????????????????????####??????? | | ???????????????????????????????? #??????? | | ??????????????????????######### #??????? | | ??????????????????????? #??????? | | ????????????????????????# #??????? | | ?????????????############ !! #??????? | | ?????????????# % ##### !! #??????? | | ?????????????# = + !! #??????? | | ?????????????# == g##### #??????? | | ?##########??# =%! #### #??????? | | ?# #??# @##??# #??????? | | ?#""" #??# g #???# "" #??????? | | ?#""" #######+####### Y" #??????? | | ?#""" # ]]] "" ?????? | | ?# # ]]] ????????? | | ?# # ]] ????????? | | ?# " " + ###+######+###########???????? | | ?# "T" # # #?????????????????????? | | ?# """ # #] #?????????????????????? | | ?###+###### # """ #?????????????????????? | | ???# # """ #?????????????????????? | | ???# + """ #?????????????????????? | | ???# # #?????????????????????? | | ???# #####+#########?????????????????????? | | ???# # #?????????????????????????? | | ???# # #?????????????????????????? | | ???# # #?????????????????????????? | | ???##### #?????????????????????????? | | ???????# #?????????????????????????? | | ???????# #?????????????????????????? | | ???????# #?????????????????????????? | | ???????# #?????????????????????????? | | ???????###########?????????????????????????? | | ???????????????????????????????????????????? | | ???????????????????????????????????????????? | +----------------------------------------------------+ Best States ------------- Heat Dissipation 38 Energy Generation 10 Energy Capacity 225 Matter Stores 300 Matter Capacity 300 Sight Range 16 Terrain Scan Density 10 Core Shielding 20 Evasion (%) 64 Item Schematics ----------------- None Robot Schematics ------------------ None Fabricated ------------ Nothing Repaired ---------- Flight Unit | 85% | -9/Materials Studied --------- None Alien Tech Used ----------------- None Achievements -------------- It's Just You Part-time Mechanic That Tickles Challenges ------------ None Game ------ Seed MetamassBoltTrident Manual? 0 Play Time 00:22:53 Cumulative 3.5 hours Start 2026.02.09 @ 18:22:38 End 2026.02.09 @ 18:41:41 Sessions 1 Manual Loads 0 Difficulty Rogue Special Mode None Game No. 5 Rogue 5 Adventurer 0 Explorer 0 Win Type - Total 0 Types 0/0/0/0/0/0/0/0/0/0 Lore% 2 Gallery% 8 Achievement% 11 Wizard Run 0 Options --------- Layout 1 ASCII 0 Keyboard 0 Movement Mouse Keybinds 0 Fullscreen 1 Font 24/Smallcaps Map View 50x35 Zoom Use 0% Tactical HUD 0 Map Filters NONE Filters NONE Steam 1 RUN: bc288697-66f1-469f-8226-aed94c8b6bca